Cogmind - Beta 15 @@@ ROGUE MODE // 2025.06.16 @ 22:32:16 Player: Duduxx Result: Destroyed by ZZ-JKR(R) with Subdweller Machine Gun Performance ------------- Evolutions (0) 0 Regions Visited (3) 600 Robots Destroyed (25) 125 Value Destroyed (487) 487 Prototype IDs (0) 0 Alien Tech Used (0) 0 Bonus (0) 0 TOTAL SCORE: 1212 Bonus ------- None Cogmind --------- Core Integrity 0/250 Matter 265/300 Energy 80/125 System Corruption 0% Temperature Cool (0) Movement Rolling (105) Ox1 Location -10/Subcaves Parts ------- > --- POWER (1) -------- Light Ion Engine > --- PROPULSION (2) --- Wheel Compact Wheel > --- UTILITY (2) ------ High-capacity Storage Unit Targeting Computer > --- WEAPON (2) ------- Medium Laser Beam Cannon > --- INVENTORY (20) --- Compact Wheel Small Storage Unit Seismic Detector Hacking Suite Grenade Launcher Datajack Mining Laser Peak State ------------ > --- POWER ------------ Ion Engine > --- PROPULSION ------- Light Treads Light Treads > --- UTILITY ---------- Heat Sink Small Storage Unit > --- WEAPON ----------- Medium Laser Beam Cannon > --- INVENTORY -------- Light Ion Engine Wheel Wheel Compact Wheel Seismic Detector Targeting Computer Hacking Suite Beam Cannon [Rating: 8] Favorites ----------- Power Ion Engine Engine Ion Engine Propulsion Wheel Treads Light Treads Wheel Wheel Utility Heat Sink Device Heat Sink Storage High-capacity Storage Unit Processor Targeting Computer Weapon Medium Laser Energy Gun Medium Laser Energy Cannon Beam Cannon Special Weapon Mining Laser Build | -11 -10 -10 -10 ------- Run | Yrd Mat Min Sub Slots Evolved . | . . . . Power . | . . . . Propulsion . | . . . . Utility . | . . . . Weapon . | . . . . Parts Attached 18 | 7 5 . 6 Power 3 | 1 . . 2 Engine 3 | 1 . . 2 Core . | . . . . Reactor . | . . . . Propulsion 5 | 2 2 . 1 Treads 2 | 2 . . . Leg . | . . . . Wheel 3 | . 2 . 1 Hover . | . . . . Flight . | . . . . Utility 5 | 2 2 . 1 Device 2 | 1 1 . . Storage 2 | 1 1 . . Processor 1 | . . . 1 Hackware . | . . . . Protection . | . . . . Artifact . | . . . . Weapon 5 | 2 1 . 2 Energy Gun 2 | 2 . . . Energy Cannon 2 | . 1 . 1 Ballistic Gun . | . . . . Ballistic Cannon . | . . . . Launcher . | . . . . Special Weapon 1 | . . . 1 Impact Weapon . | . . . . Slashing Weapon . | . . . . Piercing Weapon . | . . . . Special Melee Weapon . | . . . . Unidentified Prototypes . | . . . . Parts Lost 6 | . 1 . 5 Power 2 | . . . 2 Propulsion 2 | . 1 . 1 Utility 1 | . . . 1 Weapon 1 | . . . 1 Highest Loss Streak 3 | . 1 . 3 To Critical Strikes . | . . . . Average Backups 8 | 2 7 11 10 Power 1 | . 1 1 1 Propulsion 2 | 1 2 2 2 Utility 3 | . 2 4 4 Weapon 1 | . 1 3 2 Tool/Special . | . . . . Unused Backups 4 | . . . 4 Power . | . . . . Propulsion 1 | . . . 1 Utility 1 | . . . 1 Weapon 1 | . . . 1 Tool/Special 1 | . . . 1 Average Slot Usage (%) 98 | . 98 100 99 Engine 14 | . 14 14 14 Treads 8 | . 15 . . Wheel 18 | . 10 28 27 Device 13 | . 14 14 13 Storage 14 | . 14 14 14 Energy Gun 15 | . 16 14 14 Energy Cannon 12 | . 11 14 13 Peak Build Rating 8 | 7 8 8 8 Average Rating 7 | 4 7 8 7 On Entrance 5 | . 7 8 8 Naked Turns . | . . . . Heaviest Build 51 | 14 51 51 51 Greatest Support 40 | 40 40 20 20 Greatest Overweight (x) 2 | 1 2 2 2 Average Overweight (x) 1 | . 1 2 2 Largest Inventory Capacity 20 | 8 20 20 20 Average Capacity 15 | 6 12 20 20 Most Carried 12 | 4 11 12 12 Average Carried 8 | 2 7 11 10 Final Capacity 20 | 8 20 20 20 Final Carried 12 | 4 11 12 7 Class Distribution -------------------- 100% | Mutant Dominant Class ---------------- Mutant | -10/Materials Mutant | -10/Mines Mutant | -10/Subcaves Resources | -11 -10 -10 -10 ----------- Run | Yrd Mat Min Sub Matter Collected 335 | 123 197 . 15 Remotely . | . . . . Salvage Created 639 | 47 504 31 57 Parts 44 | 7 30 5 2 Haulers Intercepted . | . . . . Recyclers Shooed . | . . . . Parts Field Recycled . | . . . . Retrieved Matter . | . . . . Parts Self-Destructed . | . . . . Prevented . | . . . . Kills | -11 -10 -10 -10 ------- Run | Yrd Mat Min Sub Combat Hostiles Destroyed 16 | . 13 2 1 Guns 9 | . 7 1 1 Cannons 7 | . 6 1 . Classes Destroyed 8 | 1 6 . 1 Builder 1 | . 1 . . Tunneler 3 | 2 1 . . Recycler 1 | . 1 . . Operator 3 | . 3 . . Watcher 1 | . 1 . . Swarmer 8 | . 6 2 . Grunt 7 | . 7 . . Subdweller 1 | . . . 1 Best Kill Streak 5 | 2 5 2 1 Combat Bots Only 4 | . 4 2 1 Max Kills in Single Turn 2 | 1 2 1 1 Gunslinging . | . . . . Exploded . | . . . . Melee . | . . . . Uniques/NPCs Destroyed . | . . . . Combat | -11 -10 -10 -10 -------- Run | Yrd Mat Min Sub Hostile Shots Fired 98 | . 63 12 23 Missed 21 | . 13 5 3 Hits 77 | . 50 7 20 Projectile 77 | . 50 7 20 Critical Strikes 1 | . . . 1 Damage Taken 983 | . 492 64 427 Core 255 | . 90 26 139 Absorbed by Shields . | . . . . Core Remaining (%) 100 | 100 . . . Volleys Fired 73 | 4 49 4 16 Largest 2 | 2 2 2 2 Hottest 150 | 90 110 110 150 Shots Fired 144 | 8 98 8 30 Gun 82 | 8 56 4 14 Cannon 61 | . 42 4 15 Launcher . | . . . . Special 1 | . . . 1 Kinetic . | . . . . Thermal 144 | 8 98 8 30 Explosive . | . . . . Electromagnetic . | . . . . Robot Hit Streak 8 | 3 8 8 6 Robot Miss Streak 5 | 3 5 3 2 Penetration Max . | . . . . Secondary Targets . | . . . . Shots Hit Robots 84 | 3 63 4 14 Core Hits 32 | 2 25 2 3 Critical Kills . | . . . . Critical Parts Destroyed . | . . . . Critical Strikes 4 | . 4 . . Burn 4 | . 4 . . Melee Attacks . | . . . . Impact . | . . . . Slashing . | . . . . Piercing . | . . . . Sneak Attacks . | . . . . Combat Hostiles . | . . . . Follow-up Attacks . | . . . . Damage Inflicted 1452 | 49 1149 61 193 Guns 663 | 49 499 25 90 Cannons 595 | . 456 36 103 Explosions 194 | . 194 . . Melee . | . . . . Ramming . | . . . . Kinetic . | . . . . Thermal 1258 | 49 955 61 193 Explosive 194 | . 194 . . Electromagnetic . | . . . . Impact . | . . . . Slashing . | . . . . Piercing . | . . . . Highest Corruption . | . . . . Average Corruption . | . . . . Corruption Purged . | . . . . Corruption Blocked . | . . . . Overload Shots . | . . . . Overflow Damage 73 | . 73 . . Projectiles 5 | . 5 . . Explosions 68 | . 68 . . Melee . | . . . . Knockbacks . | . . . . Impact . | . . . . Kinetic . | . . . . Secondary . | . . . . Self-Inflicted Damage 18 | . 18 . . Shots 1 | . 1 . . Rammed . | . . . . Targets Rammed . | . . . . Kicked . | . . . . Crushed . | . . . . Highest Temperature 204 | 60 204 54 2 Average Temperature 59 | 24 65 29 2 Received Heat Transfer 210 | . 156 . 54 Siege Activations . | . . . . Martial Activations . | . . . . Shielding Activations . | . . . . Robots Disrupted . | . . . . Combat Hostiles . | . . . . Robots Corrupted . | . . . . Combat Hostiles . | . . . . Parts Fried . | . . . . Impact Corruptions . | . . . . Robots Melted . | . . . . Combat Hostiles . | . . . . Parts Melted 9 | . 7 . 2 Heat Transferred 3455 | 136 2690 148 481 Parts Sabotaged . | . . . . Parts Stolen . | . . . . Parts Stripped . | . . . . Power Chain Reactions . | . . . . Alert | -11 -10 -10 -10 ------- Run | Yrd Mat Min Sub Maximum Alert Level 1 | . 1 . . Low Security (%) 96 | 100 95 100 . Level 1 3 | . 4 . . Level 2 . | . . . . Level 3 . | . . . . Level 4 . | . . . . Level 5 . | . . . . High Security . | . . . . Max Security . | . . . . Peak Influence 208 | 10 208 67 . Initial 37 | . . 37 . Average 86 | 1 114 23 . Influence Increases 452 | 10 402 40 . Destroy 0b10 Robot/C 300 | . 260 40 . Destroy 0b10 Robot/NC 45 | 10 35 . . Destroy Leader 52 | . 52 . . Successful Hack 5 | . 5 . . Disable Machine 30 | . 30 . . Destroy Structure 20 | . 20 . . Influence Decreases 452 | 10 304 138 . Entered New Map 61 | . . 61 . Time Decay 381 | 10 294 77 . Lost Part 10 | . 10 . . Squads Dispatched 2 | . 2 . . Investigation . | . . . . Extermination . | . . . . Reinforcement 2 | . 2 . . Assault . | . . . . Garrison . | . . . . Intercept . | . . . . Searches Triggered . | . . . . Construction Impeded . | . . . . Haulers Reinforced . | . . . . Active Scanning Responses . | . . . . Cargo Convoy Interrupts . | . . . . Stealth | -11 -10 -10 -10 --------- Run | Yrd Mat Min Sub Distress Signals 3 | . 3 . . Communications Jammed . | . . . . Distress Signals . | . . . . Times Spotted 27 | . 20 3 4 Peak Tracking Total 4 | . 4 3 2 Tactical Retreats . | . . . . Traps | -11 -10 -10 -10 ------- Run | Yrd Mat Min Sub Traps Triggered . | . . . . Indirectly . | . . . . Trap Hack Attempts . | . . . . Triggered . | . . . . Disarmed . | . . . . Reprogrammed . | . . . . Reused . | . . . . Traps Extracted . | . . . . Installed . | . . . . Triggered . | . . . . Machines | -11 -10 -10 -10 ---------- Run | Yrd Mat Min Sub Machines Disabled 2 | . 2 . . Max in Single Turn 2 | . 2 . . Machines Repaired . | . . . . Machines Dismantled . | . . . . Machines Sabotaged . | . . . . Overloaded Fab Kills . | . . . . Hacking | -11 -10 -10 -10 --------- Run | Yrd Mat Min Sub Machines Accessed 4 | . 3 . 1 Terminals 3 | . 3 . . Fabricators . | . . . . Repair Stations . | . . . . Recycling Units . | . . . . Scanalyzers . | . . . . Garrison Access . | . . . . Total Hacks 8 | . 5 . 3 Successful 5 | . 2 . 3 Failed 3 | . 3 . . Catastrophic 1 | . 1 . . Database Lockouts . | . . . . Manual 4 | . 4 . . Terminals 5 | . 5 . . Fabricators . | . . . . Repair Stations . | . . . . Recycling Units . | . . . . Scanalyzers . | . . . . Garrison Access . | . . . . Terminal Hacks 5 | . 2 . 3 Record 3 | . . . 3 Alert Level 1 | . 1 . . Hauler Manifests 1 | . 1 . . Fabricator Hacks . | . . . . Repair Station Hacks . | . . . . Recycling Unit Hacks . | . . . . Scanalyzer . | . . . . Garrison Access Hacks . | . . . . Unauthorized Hacks . | . . . . Terminals . | . . . . Fabricators . | . . . . Repair Stations . | . . . . Recycling Units . | . . . . Scanalyzers . | . . . . Garrison Access . | . . . . Data Cores Recovered 1 | . 1 . . Used . | . . . . Hacking Detections 3 | . 3 . . Full Trace Events . | . . . . Feedback Events . | . . . . Feedback Blocked . | . . . . Robot Schematics Acquired . | . . . . Robots Built . | . . . . Authchips . | . . . . Time . | . . . . Total Robot Build Rating . | . . . . Part Schematics Acquired . | . . . . Parts Built . | . . . . Authchips . | . . . . Time . | . . . . Total Part Build Rating . | . . . . Parts Repaired . | . . . . Time . | . . . . Parts Recycled . | . . . . Recycled Matter . | . . . . Retrieved Matter . | . . . . Retrieved Components . | . . . . Parts Scanalyzed . | . . . . Part Schematics Acquired . | . . . . Parts Damaged . | . . . . Bothacking | -11 -10 -10 -10 ------------ Run | Yrd Mat Min Sub Used RIF Installer . | . . . . Robots Hacked . | . . . . Non-combat . | . . . . Combat . | . . . . Robot Hacks Applied . | . . . . Relay Couplers Released . | . . . . Fabnet Peak Effective % . | . . . . Robots Rewired . | . . . . Allies Hacked . | . . . . Hacks Repelled . | . . . . Allies | -11 -10 -10 -10 -------- Run | Yrd Mat Min Sub Total Allies . | . . . . Largest Group . | . . . . Highest-Rated Group . | . . . . Highest-Rated Ally . | . . . . Total Orders . | . . . . Ally Attacks . | . . . . Total Damage . | . . . . Kills . | . . . . Allies Corrupted . | . . . . Allies Melted . | . . . . Intel | -11 -10 -10 -10 ------- Run | Yrd Mat Min Sub Active Infowar (turns) 105 | 8 97 . . Seismic 105 | 8 97 . . Robot Analysis Total . | . . . . Derelict Logs Recovered . | . . . . Drone Launches . | . . . . Drone Recoveries . | . . . . Exploration | -11 -10 -10 -10 ------------- Run | Yrd Mat Min Sub Turns Passed 1514 | 84 745 229 456 Spaces Moved 1000 | 39 442 155 364 Core 5 | 5 . . . Treads 226 | 34 192 . . Legs . | . . . . Wheels 769 | . 250 155 364 Hover . | . . . . Flight . | . . . . Fastest Speed 50 | 50 110 110 110 Average Speed 121 | 149 131 110 110 Slowest Speed 160 | 160 160 110 110 Overloaded Moves . | . . . . Propulsion Burnouts . | . . . . Robots Hopped . | . . . . Potential Cave-ins . | . . . . Cave-ins Triggered . | . . . . Exploration Rate (%) 38 | 4 73 46 30 Regions Visited 3 Branch Regions 2 Pre-discovered Areas . | . . . . Known Exits Taken . | . . . . Unknown Exits Taken 3 | 1 1 1 . Scrap Searched . | . . . . Spaces Dug . | . . . . Terrain Destroyed 17 | . 17 . . Melee . | . . . . Projectile . | . . . . AOE 17 | . 17 . . Terrain Rammed . | . . . . Walls Destroyed . | . . . . Machines Disabled . | . . . . Actions | -11 -10 -10 -10 --------- Run | Yrd Mat Min Sub Total 1153 | 53 508 205 387 Wait 46 | . . 46 . Move 997 | 38 441 154 364 Hop . | . . . . Pick Up 13 | 4 8 1 . Fast Attach 9 | 7 2 . . Attach 7 | . 2 . 5 Detach 2 | . 2 . . Swap 3 | . 1 . 2 Drop 3 | . 3 . . Fire 73 | 4 49 4 16 Melee . | . . . . Ram . | . . . . Kick . | . . . . Crush . | . . . . Escape Stasis . | . . . . Rewire . | . . . . Trap . | . . . . Miscellaneous . | . . . . Route ------- -11/Scrapyard -10/Materials (discovered 2 exits: [*Mat] / [*Min]) -10/Mines -10/Subcaves (discovered 1 exit: [*Mat]) History --------- Turn | Location | Event 14 | -11/Scrapyard | Discovered new exit (range 15) 85 | -11/Scrapyard | Entered Materials 310 | -10/Materials | Build established: Mutant 706 | -10/Materials | Discovered new exit (range 15) 811 | -10/Materials | Discovered new exit (range 7) 830 | -10/Materials | Entered Mines 1042 | -10/Mines | Discovered new exit (range 6) 1059 | -10/Mines | Entered Subcaves 1086 | -10/Subcaves | Core integrity fell below 50% 1141 | -10/Subcaves | Discovered new exit (range 12) 1169 | -10/Subcaves | Visited Clippyterm 1172 | -10/Subcaves | Learned Factory garrison access intel 1329 | -10/Subcaves | A swath of the cavern ceiling suddenly collapsed 1506 | -10/Subcaves | Core integrity fell below 20% 1515 | -10/Subcaves | Destroyed by ZZ-JKR(R) with Subdweller Machine Gun Last Messages --------------- data I collect to feed it, half the time it still manages to suggest unhelpful sample queries and responses. --DD-NU8 >>Record! "Tag" It looks like you don't want to be "it," would you like help? Data stored: Factory garrison access intel. >>Record! "SUBCON Basin" It looks like you want to play with dangerous UFD tech. While I can't recommend taking subatomizers out of the Subcaves, I can warn that doing so is a one-way ticket to summoning unimaginable chaos on any area not hardened against them. That includes... just about anywhere. A swath of the cavern ceiling suddenly collapses. 01502_ Wheel destroyed. 01508_ Heat Sink destroyed. 01513_ Lgt. Ion Engine destroyed. Map ----- +----------------------------------------------------+ | ?????????????????????????????????????????????????? | | ?????????????????????????????????????????????????? | | ?????????????????????????????????????????????????? | | ?????????????????????????????????????????????????? | | ?????????????????????????????????????????????????? | | ?????????????????????????????????????????????????? | | ?????????????????????????????????????????????????? | | ?????????????????????????????????????????????????? | | ?????????????????????????????????????????????????? | | ?????????????????????????????????????????????????? | | ?????????????????????????????????????????????????? | | ?????????????????????????????????????????????????? | | ?????????????????????????????????????????????????? | | ?????????????????????????????????????????????????? | | ?????????????????????????????????????????????????? | | ???????????????????????????#### ????????????????? | | ??????????????????????????? #????????????????? | | ?????????????????????????"" ##???????????????? | | ????????????????????????? "" #???????????????? | | ????????????????????????? "" "????????????????? | | ????????????????????????? "" "?????????????????? | | ????????????????????????? ""??????????????????? | | ?????????????????????????# """"????????????????? | | ????????????????????????## R"" ""???????????????? | | ????????????????????????# "" "???????????????? | | ????????????????????????#@R"#????????????????????? | | ????????????????????????# "##????????????????????? | | ????????????????????????#" #?????????????????????? | | ???????????????????????## "##????????????????????? | | ?????######??????????### #????????????????????? | | ????## #########?## ##????????????????????? | | ???## ## ### #?????????????????????? | | ??## ## ##?????????????????????? | | ??# ## ##?????????????????????? | | ?## ## #?????????????????????? | | ## ## ## ## #?????????????????????? | | # #### ### ## ###?????????????????????? | | ## #####?#### ###?????????????????????? | | # #???????# ### #?????????????????????? | | # ###???????## ##?## #?????????????????????? | | ###??????????####????##?????????????????????? | | ####????????????????????????????????????????? | | ##???????????????????????????????????????? | | ##??????????????????????????????????????? | | # #??????????????????????????????????????? | | # #??????????????????????????????????????? | | # #??????????????????????????????????????? | | # #??????????????????????????????????????? | | ## #??????????????????????????????????????? | | ####??????????????????????????????????????? | +----------------------------------------------------+ Best States ------------- Heat Dissipation 35 Energy Generation 10 Energy Capacity 250 Matter Stores 300 Matter Capacity 300 Sight Range 16 Terrain Scan Density 10 Evasion (%) 40 Recoil Reduction 2 Item Schematics ----------------- None Robot Schematics ------------------ None Fabricated ------------ Nothing Repaired ---------- Nothing Alien Tech Used ----------------- None Achievements -------------- None Challenges ------------ None Game ------ Seed BattleGyrokineticPerforator Manual? 0 Play Time 00:10:20 Cumulative 111.6 hours Start 2025.06.16 @ 22:24:13 End 2025.06.16 @ 22:32:16 Sessions 1 Manual Loads 0 Difficulty Rogue Special Mode None Game No. 218 Rogue 218 Adventurer 0 Explorer 0 Win Type - Total 0 Types 0/0/0/0/0/0/0/0/0/0 Lore% 30 Gallery% 45 Achievement% 35 Wizard Run 0 Options --------- Layout 1 ASCII 0 Keyboard 1 Movement Arrows Keybinds 0 Fullscreen 2 Font 24/Smallcaps Map View 50x35 Zoom Use 0% Tactical HUD 1 Map Filters NONE Filters NONE Steam 1 RUN: b8198e0e-47e4-4898-a254-f2d751c874c1